Cogmind - Beta 13 @@@ ROGUE MODE // 2024.04.18 @ 20:30:53 Player: Bobby43rocks Result: Destroyed by S-10 Pest with Light Assault Rifle Performance ------------- Evolutions (0) 0 Regions Visited (4) 800 Robots Destroyed (9) 45 Value Destroyed (180) 180 Prototype IDs (1) 20 Alien Tech Used (0) 0 Bonus (332) 332 TOTAL SCORE: 1377 Bonus ------- Follower Combat Kills 32 Aligned with FarCom 300 Cogmind --------- Core Integrity 0/250 Matter 300/300 Energy 104/160 System Corruption 2% Temperature Cool (2) Movement Core (800) Ox15 Location -9/Mines Parts ------- > --- POWER (1) -------- Light Nuclear Core > --- PROPULSION (2) --- (None) > --- UTILITY (2) ------ High-capacity Storage Unit Improved Terrain Scanner > --- WEAPON (2) ------- Light Assault Rifle Light Assault Rifle > --- INVENTORY (20) --- Ion Engine Light Ion Engine Light Nuclear Core Combat Airjet Combat Airjet Medium Matter Pod (100) Terrain Scan Processor Targeting Computer Core Shielding Decoy Drone Bay Small Laser Small Laser Mining Laser Peak State ------------ > --- POWER ------------ Light Nuclear Core > --- PROPULSION ------- Light Treads Light Treads > --- UTILITY ---------- High-capacity Storage Unit Improved Terrain Scanner > --- WEAPON ----------- Light Assault Rifle Light Assault Rifle > --- INVENTORY -------- Ion Engine Light Ion Engine Light Nuclear Core Combat Airjet Medium Matter Pod Terrain Scan Processor Targeting Computer Core Shielding Decoy Drone Bay Small Laser Small Laser Mining Laser [Rating: 14] Favorites ----------- Power Light Nuclear Core Engine Ion Engine Power Core Light Nuclear Core Propulsion Light Treads Treads Light Treads Utility Power Shielding Device Improved Terrain Scanner Storage High-capacity Storage Unit Protection Power Shielding Weapon Light Assault Rifle Energy Gun EM Pulse Gun Ballistic Gun Light Assault Rifle Build | -11 -10 -10 -10 -9 ------- Run | Yrd Mat Min Exi Min Slots Evolved . | . . . . . Power . | . . . . . Propulsion . | . . . . . Utility . | . . . . . Weapon . | . . . . . Parts Attached 14 | 7 1 3 1 2 Power 3 | 2 . 1 . . Engine 2 | 2 . . . . Core 1 | . . 1 . . Reactor . | . . . . . Propulsion 2 | 2 . . . . Treads 2 | 2 . . . . Leg . | . . . . . Wheel . | . . . . . Hover . | . . . . . Flight . | . . . . . Utility 5 | 1 . 2 1 1 Device 2 | . . 1 . 1 Storage 2 | 1 . . 1 . Processor . | . . . . . Hackware . | . . . . . Protection 1 | . . 1 . . Artifact . | . . . . . Weapon 4 | 2 1 . . 1 Energy Gun 1 | 1 . . . . Energy Cannon . | . . . . . Ballistic Gun 3 | 1 1 . . 1 Ballistic Cannon . | . . . . . Launcher . | . . . . . Special Weapon . | . . . . . Impact Weapon . | . . . . . Slashing Weapon . | . . . . . Piercing Weapon . | . . . . . Special Melee Weapon . | . . . . . Unidentified Prototypes 1 | . . 1 . . Parts Lost 6 | . 1 1 . 4 Power . | . . . . . Propulsion 2 | . . . . 2 Utility 2 | . . 1 . 1 Weapon 2 | . 1 . . 1 Highest Loss Streak 2 | . 1 1 . 2 To Critical Strikes . | . . . . . Average Slot Usage (%) 97 | . 85 91 100 98 Engine 2 | . 14 9 . . Core 11 | . . 4 14 14 Treads 27 | . 28 28 28 27 Device 1 | . . 1 . 10 Storage 14 | . 14 14 14 14 Protection 9 | . . 5 14 3 Ballistic Gun 27 | . 21 28 28 27 Naked Turns . | . . . . . Heaviest Build 49 | 14 14 14 49 49 Greatest Support 40 | 40 40 40 40 40 Greatest Overweight (x) 1 | . . . 1 1 Average Overweight (x) . | . . . . 1 Largest Inventory Capacity 20 | 8 8 8 20 20 Average Capacity 15 | 7 8 8 17 20 Most Carried 14 | 4 3 8 9 14 Average Carried 8 | 1 2 5 8 11 Final Capacity 20 | 8 8 8 20 20 Final Carried 14 | 2 3 8 9 14 Class Distribution -------------------- 88% | Mutant 11% | Skirmisher Dominant Class ---------------- Mutant | -10/Materials Mutant | -10/Mines Mutant | -10/Exiles Skirmisher | -9/Mines Resources | -11 -10 -10 -10 -9 ----------- Run | Yrd Mat Min Exi Min Matter Collected 482 | 270 47 67 10 88 Remotely . | . . . . . Salvage Created 275 | . 91 72 . 112 Parts 21 | . 4 9 . 8 Haulers Intercepted . | . . . . . Recyclers Shooed . | . . . . . Parts Field Recycled . | . . . . . Retrieved Matter . | . . . . . Parts Self-Destructed . | . . . . . Prevented . | . . . . . Kills | -11 -10 -10 -10 -9 ------- Run | Yrd Mat Min Exi Min Combat Hostiles Destroyed 11 | . 2 3 . 6 Guns 11 | . 2 3 . 6 Classes Destroyed 5 | . 1 2 . 2 Builder 1 | . . . . 1 Tunneler 1 | . . 1 . . Swarmer 4 | . . 2 . 2 Grunt 3 | . 2 1 . . Assembled 4 | . . . . 4 Best Kill Streak 3 | . 2 2 . 3 Combat Bots Only 2 | . 2 2 . 2 Max Kills in Single Turn 1 | . 1 1 . 1 Gunslinging . | . . . . . Exploded . | . . . . . Melee . | . . . . . Uniques/NPCs Destroyed . | . . . . . Combat | -11 -10 -10 -10 -9 -------- Run | Yrd Mat Min Exi Min Hostile Shots Fired 84 | . 20 14 . 50 Missed 22 | . 5 4 . 13 Damage Taken 921 | . 243 130 . 548 Core 256 | . 40 36 . 180 Absorbed by Shields . | . . . . . Redirected to Shielding 8 | . . . . 8 Core Remaining (%) 100 | 100 . . . . Volleys Fired 50 | . 11 9 . 30 Largest 2 | . 2 2 . 2 Hottest 60 | . 60 40 . 40 Shots Fired 99 | . 22 18 . 59 Gun 99 | . 22 18 . 59 Cannon . | . . . . . Launcher . | . . . . . Special . | . . . . . Kinetic 97 | . 20 18 . 59 Thermal . | . . . . . Explosive . | . . . . . Electromagnetic 2 | . 2 . . . Robot Hit Streak 9 | . 5 7 . 9 Robot Miss Streak 3 | . 2 1 . 3 Penetration Max . | . . . . . Secondary Targets 1 | . 1 . . . Max Gunslinging Chain 1 | . 1 . . . Shots Hit Robots 61 | . 13 13 . 35 Core Hits 28 | . 5 6 . 17 Critical Kills . | . . . . . Critical Parts Destroyed . | . . . . . Critical Strikes . | . . . . . Melee Attacks . | . . . . . Impact . | . . . . . Slashing . | . . . . . Piercing . | . . . . . Sneak Attacks . | . . . . . Combat Hostiles . | . . . . . Follow-up Attacks . | . . . . . Damage Inflicted 618 | . 152 157 . 309 Guns 588 | . 152 129 . 307 Cannons . | . . . . . Explosions . | . . . . . Melee . | . . . . . Ramming 30 | . . 28 . 2 Kinetic 576 | . 140 129 . 307 Thermal . | . . . . . Explosive . | . . . . . Electromagnetic 12 | . 12 . . . Impact . | . . . . . Slashing . | . . . . . Piercing . | . . . . . Highest Corruption 2 | . . . . 2 Average Corruption 2 | . . . . 2 Corruption Purged . | . . . . . Corruption Blocked . | . . . . . Effects 10 | . . . . 10 Message Errors 3 | . . . . 3 Matter Fused 2 | . . . . 2 Heat Flow Errors 1 | . . . . 1 Energy Discharges 2 | . . . . 2 Data Loss (minor) 2 | . . . . 2 Overload Shots . | . . . . . Overflow Damage . | . . . . . Projectiles . | . . . . . Explosions . | . . . . . Melee . | . . . . . Knockbacks . | . . . . . Impact . | . . . . . Kinetic . | . . . . . Secondary . | . . . . . Self-Inflicted Damage . | . . . . . Shots . | . . . . . Rammed 8 | . . 5 . 3 Targets Rammed 9 | . . 6 . 3 Kicked . | . . . . . Crushed 1 | . . 1 . . Highest Temperature 238 | . 19 9 . 238 Average Temperature 22 | . 8 9 . 27 Received Heat Transfer 177 | . 114 63 . . Siege Activations . | . . . . . Robots Corrupted . | . . . . . Combat Hostiles . | . . . . . Parts Fried . | . . . . . Impact Corruptions . | . . . . . Robots Melted . | . . . . . Combat Hostiles . | . . . . . Parts Melted . | . . . . . Heat Transferred . | . . . . . Parts Sabotaged . | . . . . . Parts Stolen . | . . . . . Parts Stripped . | . . . . . Power Chain Reactions . | . . . . . Alert | -11 -10 -10 -10 -9 ------- Run | Yrd Mat Min Exi Min Peak Influence 50 | . 50 42 . 49 Initial 19 | . . 19 . . Average 10 | . 19 13 . 5 Maximum Alert Level . | . . . . . Low Security (%) 100 | 100 100 100 . 100 Level 1 . | . . . . . Level 2 . | . . . . . Level 3 . | . . . . . Level 4 . | . . . . . Level 5 . | . . . . . High Security . | . . . . . Max Security . | . . . . . Squads Dispatched 1 | . 1 . . . Investigation . | . . . . . Extermination . | . . . . . Reinforcement 1 | . 1 . . . Assault . | . . . . . Garrison . | . . . . . Intercept . | . . . . . Searches Triggered . | . . . . . Construction Impeded . | . . . . . Haulers Reinforced . | . . . . . Active Scanning Responses . | . . . . . Cargo Convoy Interrupts . | . . . . . Stealth | -11 -10 -10 -10 -9 --------- Run | Yrd Mat Min Exi Min Distress Signals 3 | . 2 . . 1 Communications Jammed . | . . . . . Distress Signals . | . . . . . Times Spotted 16 | . 2 4 . 10 Peak Tracking Total 4 | . 2 3 . 4 Tactical Retreats 2 | . . . . 2 Traps | -11 -10 -10 -10 -9 ------- Run | Yrd Mat Min Exi Min Traps Triggered 1 | . 1 . . . Indirectly . | . . . . . Trap Hack Attempts . | . . . . . Triggered . | . . . . . Disarmed . | . . . . . Reprogrammed . | . . . . . Reused . | . . . . . Traps Extracted . | . . . . . Installed . | . . . . . Triggered . | . . . . . Machines | -11 -10 -10 -10 -9 ---------- Run | Yrd Mat Min Exi Min Machines Disabled . | . . . . . Max in Single Turn . | . . . . . Machines Repaired . | . . . . . Machines Dismantled . | . . . . . Machines Sabotaged . | . . . . . Overloaded Fab Kills . | . . . . . Hacking | -11 -10 -10 -10 -9 --------- Run | Yrd Mat Min Exi Min Machines Accessed 6 | . . 1 4 1 Terminals 1 | . . . . 1 Fabricators . | . . . . . Repair Stations . | . . . . . Recycling Units . | . . . . . Scanalyzers . | . . . . . Garrison Access . | . . . . . Total Hacks 51 | . . 1 49 1 Successful 51 | . . 1 49 1 Failed . | . . . . . Catastrophic . | . . . . . Database Lockouts . | . . . . . Manual . | . . . . . Terminals 1 | . . . . 1 Fabricators . | . . . . . Repair Stations . | . . . . . Recycling Units . | . . . . . Scanalyzers . | . . . . . Garrison Access . | . . . . . Terminal Hacks 51 | . . 1 49 1 Record 49 | . . . 49 . Open Door 1 | . . 1 . . Dispatch Records 1 | . . . . 1 Fabricator Hacks . | . . . . . Repair Station Hacks . | . . . . . Recycling Unit Hacks . | . . . . . Scanalyzer . | . . . . . Garrison Access Hacks . | . . . . . Unauthorized Hacks . | . . . . . Terminals . | . . . . . Fabricators . | . . . . . Repair Stations . | . . . . . Recycling Units . | . . . . . Scanalyzers . | . . . . . Garrison Access . | . . . . . Data Cores Recovered . | . . . . . Used . | . . . . . Hacking Detections 1 | . . . . 1 Full Trace Events . | . . . . . Feedback Events . | . . . . . Feedback Blocked . | . . . . . Robot Schematics Acquired . | . . . . . Robots Built . | . . . . . Authchips . | . . . . . Time . | . . . . . Total Robot Build Rating . | . . . . . Part Schematics Acquired . | . . . . . Parts Built . | . . . . . Authchips . | . . . . . Time . | . . . . . Total Part Build Rating . | . . . . . Parts Repaired . | . . . . . Time . | . . . . . Parts Recycled . | . . . . . Recycled Matter . | . . . . . Retrieved Matter . | . . . . . Retrieved Components . | . . . . . Parts Scanalyzed . | . . . . . Part Schematics Acquired . | . . . . . Parts Damaged . | . . . . . Bothacking | -11 -10 -10 -10 -9 ------------ Run | Yrd Mat Min Exi Min Used RIF Installer . | . . . . . Robots Hacked . | . . . . . Non-combat . | . . . . . Combat . | . . . . . Robot Hacks Applied . | . . . . . Relay Couplers Released . | . . . . . Fabnet Peak Effective % . | . . . . . Robots Rewired . | . . . . . Allies Hacked . | . . . . . Hacks Repelled . | . . . . . Allies | -11 -10 -10 -10 -9 -------- Run | Yrd Mat Min Exi Min Total Allies 3 | . . 3 . . Largest Group 2 | . . 2 1 . Highest-Rated Group 39 | . . 39 31 . Highest-Rated Ally 31 | . . 31 31 . Total Orders . | . . . . . Ally Attacks 8 | . . 8 . . Total Damage 42 | . . 42 . . Kills 2 | . . 2 . . Allies Corrupted . | . . . . . Allies Melted . | . . . . . Intel | -11 -10 -10 -10 -9 ------- Run | Yrd Mat Min Exi Min Robot Analysis Total . | . . . . . Derelict Logs Recovered 2 | . . 1 . 1 Drone Launches . | . . . . . Drone Recoveries . | . . . . . Exploration | -11 -10 -10 -10 -9 ------------- Run | Yrd Mat Min Exi Min Turns Passed 4219 | 117 154 945 2369 634 Spaces Moved 2019 | 73 75 557 1090 224 Core 10 | 10 . . . . Treads 2009 | 63 75 557 1090 224 Legs . | . . . . . Wheels . | . . . . . Hover . | . . . . . Flight . | . . . . . Fastest Speed 50 | 50 160 160 160 240 Average Speed 199 | 144 160 160 217 240 Slowest Speed 240 | 160 160 160 240 240 Overloaded Moves . | . . . . . Propulsion Burnouts . | . . . . . Robots Hopped . | . . . . . Cave-ins Triggered . | . . . . . Exploration Rate (%) 46 | 5 17 79 92 39 Regions Visited 4 Branch Regions 3 Pre-discovered Areas 1 | . . . 1 . Known Exits Taken . | . . . . . Unknown Exits Taken 4 | 1 1 1 1 . Scrap Searched 2 | . . 2 . . Spaces Dug . | . . . . . Terrain Destroyed . | . . . . . Melee . | . . . . . Projectile . | . . . . . AOE . | . . . . . Terrain Rammed . | . . . . . Walls Destroyed . | . . . . . Machines Disabled . | . . . . . Actions | -11 -10 -10 -10 -9 --------- Run | Yrd Mat Min Exi Min Total 2123 | 82 89 591 1092 269 Wait 11 | . 1 7 . 3 Move 2015 | 72 74 556 1089 224 Hop . | . . . . . Pick Up 20 | 3 2 7 1 7 Fast Attach 4 | 4 . . . . Attach 7 | 2 1 2 . 2 Detach . | . . . . . Swap 4 | 1 . 2 1 . Drop 3 | . . 2 1 . Fire 50 | . 11 9 . 30 Melee . | . . . . . Ram . | . . . . . Kick . | . . . . . Crush 9 | . . 6 . 3 Escape Stasis . | . . . . . Rewire . | . . . . . Trap . | . . . . . Miscellaneous . | . . . . . Route ------- -11/Scrapyard -10/Materials -10/Mines (discovered 2 exits: [*Mat] / *Exi) -10/Exiles (discovered 2 exits: *Min x2) -9/Mines History --------- Turn | Location | Event 3 | -11/Scrapyard | Met Revision 17 10 | -11/Scrapyard | Discovered new exit (range 15) 118 | -11/Scrapyard | Entered Materials 237 | -10/Materials | Met 8R-AWN 245 | -10/Materials | Discovered new exit (range 8) 272 | -10/Materials | Entered Mines 274 | -10/Mines | Followed 8R-AWN into the Mines 287 | -10/Mines | Learned Materials trap positions 310 | -10/Mines | Build established: Mutant 536 | -10/Mines | Found a damaged Exp. Sensor Array with a note attached 539 | -10/Mines | Found Prototype Device 660 | -10/Mines | Discovered new exit (range 8) 710 | -10/Mines | Identified Exp. Sensor Array 755 | -10/Mines | Found the Drone Emporium 765 | -10/Mines | Found Prototype Device 1114 | -10/Mines | Received a Mining Laser from a helpful Derelict 1169 | -10/Mines | Discovered new exit (range 5) 1217 | -10/Mines | Entered Exiles 1217 | -10/Exiles | Accompanied by 1 ally 1273 | -10/Exiles | Welcomed by 8R-AWN 1323 | -10/Exiles | Learned about 8R-AWN's background 1326 | -10/Exiles | Met EX-HEX 1395 | -10/Exiles | Met EX-BIN 1425 | -10/Exiles | Aligned with FarCom system 1427 | -10/Exiles | Given EX-Vault access code 1600 | -10/Exiles | Met EX-DEC 1854 | -10/Exiles | Visited The Gauntlet 2198 | -10/Exiles | Learned location of Zion (-7) 2318 | -10/Exiles | Discovered new exit (range 11) 3158 | -10/Exiles | Discovered new exit (range 15) 3586 | -10/Exiles | Entered Mines 3587 | -9/Mines | Assembled infested the area 3592 | -9/Mines | Assisted by a Guerilla fighting off Assembled 3628 | -9/Mines | Core integrity fell below 50% 3953 | -9/Mines | Learned Materials emergency access door positions 4052 | -9/Mines | Build established: Skirmisher 4196 | -9/Mines | Core integrity fell below 20% 4220 | -9/Mines | Destroyed by S-10 Pest with Light Assault Rifle Last Messages --------------- Slammed into U-05 Engineer. K-01 Serf collects debris. T-07 Excavator is excavating. System corrupted: Component data lost. K-01 Serf collects debris. T-07 Excavator is excavating. K-01 Serf collects debris. T-07 Excavator is excavating. Acquired Cmb. Airjet. XIDGSS6KUYAZZ6SDOYWBMEC Slammed into R-06 Scavenger. >GG OB IZED0GHA7IUJ1SPD& US HIS&NQZB S-10 Pest destroyed. Acquired 4 matter. Acquired 2 matter. Lgt. Treads destroyed. S-10 Pest destroyed. Acquired 2 matter. System corrupted: Energy discharge (-56). Acquired 2 matter. Map ----- +----------------------------------------------------+ | ?????????????????????????????????????????????????? | | ?????????????????????????????????????????????????? | | ?????????????????????????????????????????????????? | | ?????????????????????????????????????????????????? | | ?????????????????????????????????????????????????? | | ?????????????????????????????????????????????????? | | ?????????????????????????????????????????????????? | | ?????????????????????????????????????????????????? | | ???? ????????????????????????????????????????????? | | ?????????????????????#??????????????????????????? | | ?????????????????????????????????????????????????? | | ???? ????????????????????????? ##????????????????? | | ? ??????????????#??????????? #?????????????????? | | ?? ??????????? ???????#????? #?????????????????? | | ??? ????????????????######?# #???? ? ??????????? | | ???????????????????## ## ##???? #??????????? | | ??#??#??? ?????????# #???? ###????????? | | ??????????????????## #???? ?????????? | | ?#????????????#???## #??? #??????????? | | ???????????##?#???## # ## #??????????? | | ##??????? ???##???# ### #??????????? | | #???#??? ??####### # # #??????????? | | ##?????##??# #?? % #???????????? | | ###?????? # ###### # # #? ###?????????? | | ###?? ??## # ?## ####### % #?????????? | | / ##?##### ####### s% @%=%= #???????? | | %% #?#* ######## ! #??????? | | #= ### #############????????? *%= #??????? | | ## !%* # ??##? ????????### ??????? | | ### ### ## #???? # ##?????????????? ??????? | | ### #?# # ## ? ??? # #???????????#?????????????? | | ## #?# #?####### ###???????????????????????? | | !% ##?# #??## #???????????????????????? | | #??# #### #???????????????????????? | | #### #?????#??????#??????????? | | ## # ## #????#?????#??????????????? | | ### ###?????????????#?##??????????????? | | ###?###?????????????????????????????????? | | ####?????????#??????????????????????????? | | ## ##???????????????????????????????????????? | | ######?????#????#?????????????????????????????? | | ##??#??????#???????????????????????????????????? | | ###???##?????#???????????????????????????????????? | | ??##??????#????#?????????????????????????????????? | | ???#?#???????????????????????????????????????????? | | | | | | | | | | | +----------------------------------------------------+ Best States ------------- Heat Dissipation 39 Energy Generation 14 Energy Capacity 250 Matter Stores 300 Matter Capacity 300 Sight Range 16 Terrain Scan Range 16 Terrain Scan Density 10 Power Shielding 33 Evasion (%) 40 Recoil Reduction 2 Item Schematics ----------------- None Robot Schematics ------------------ None Fabricated ------------ Nothing Alien Tech Used ----------------- None Achievements -------------- Librarian Tourist Challenges ------------ None Game ------ Seed TransportSpacefoldBank Manual? 0 Play Time 00:15:18 Cumulative 6.9 hours Start 2024.04.18 @ 20:17:35 End 2024.04.18 @ 20:30:53 Sessions 1 Manual Loads 0 Difficulty Rogue Special Mode None Game No. 24 Rogue 24 Adventurer 0 Explorer 0 Win Type - Total 0 Types 0/0/0/0/0/0/0/0/0 Lore% 8 Gallery% 13 Achievement% 11 Wizard Run 0 Options --------- Layout 1 ASCII 0 Keyboard 1 Movement Arrows Keybinds 0 Fullscreen 2 Font 24/Tallcaps Map View 50x35 Zoom Use 0% Tactical HUD 0 Map Filters NONE Filters NONE Steam 1 RUN: ffaa3c5b-e55a-4d47-8a85-bd4c79972d86